[Event "Skalica SCHAEFFLER Open 2019"]
[Site "Skalica"]
[Date "2019.08.29"]
[Round "6.6"]
[White "Kozusnikova, Daniela"]
[Black "Londin, Martin"]
[Result "0-1"]
[ECO "C47"]
[WhiteElo "1235"]
[BlackElo "1930"]
[Annotator "NA"]
[PlyCount "92"]
[EventDate "2019.08.25"]
[EventType "swiss"]
[EventCountry "SVK"]
[SourceTitle "playchess.com"]
[Source "ChessBase"]
[SourceQuality "1"]
[TimeControl "40/5400+30:1800+30"]

1. e4 {[%emt 0:00:00]} e5 {[%emt 0:00:00]} 2. Nf3 {[%emt 0:00:00]} Nc6 {[%emt 0:00:00]} 3. Nc3 {[%emt 0:00:00]} Nf6 {[%emt 0:00:00]} 4. d4 {[%emt 0:00:00]} exd4 {[%emt 0:00:14]} 5. Nxd4 {[%emt 0:00:08]} Bc5 {[%emt 0:00:32]} 6. Nxc6 {[%emt 0:00:26]} bxc6 {[%emt 0:01:54]} 7. Bg5 {[%emt 0:00:49]} h6 {[%emt 0:00:29] C47: Scotch Four Knights and Four Knights with 4 g3} 8. Bh4 {[%emt 0:00:23]} Qe7 {[%emt 0:00:23]} 9. Qf3 {[%emt 0:01:32]} (9. Bd3 Rb8 10. O-O d6 11. Na4 Bb6 12. Nxb6 Rxb6 13. f4 O-O 14. Qc1 Qe6 15. e5 dxe5 16. fxe5 {0-1 (67) Arutyunova,D (2227)-Khademalsharieh,S (2470) St Petersburg 2018}) 9... Bd4 $146 {[%emt 0:02:34]} ({Predecessor:} 9... g5 10. Bg3 d6 11. h3 a5 12. Bd3 Be6 13. O-O g4 14. hxg4 Bxg4 15. Qf4 {½-½ (59) Mbusnoum,H-Ould Taleb,M Khanty-Mansiysk 2010}) 10. Bd3 {[%emt 0:03:51]} d6 {[%emt 0:00:51]} 11. O-O {[%emt 0:03:00]} Bg4 {[%emt 0:00:28]} 12. Bxf6 {[%emt 0:02:08]} Qe6 {[%emt 0:02:11]} 13. Qf4 {[%emt 0:04:16]} Bxf6 {[%emt 0:00:31]} 14. Rfe1 {[%emt 0:01:18]} (14. h3 $14 Bh5 15. e5 dxe5 16. Qb4) 14... Bg5 {[%emt 0:01:54]} 15. Qg3 {[%emt 0:01:31]} Bd2 {[%emt 0:02:43]} 16. Rf1 {[%emt 0:01:40]} g5 {[%emt 0:02:51]} 17. f3 {[%emt 0:02:07]} Be3+ {[%emt 0:03:46]} 18. Kh1 {[%emt 0:00:47]} Bh5 {[%emt 0:00:28]} 19. Rfe1 {[%emt 0:01:00]} Bd2 {[%emt 0:02:02]} 20. Re2 {[%emt 0:00:53]} Bf4 {[%emt 0:00:43]} 21. Qe1 {[%emt 0:01:07]} Qe5 {[%emt 0:00:24]} (21... Qf6 $11) 22. g4 {[%emt 0:10:54]} ({White should play} 22. Nd5 $14 O-O 23. Nxf4 gxf4 24. Rd1) 22... Bg6 {[%emt 0:04:32]} 23. h3 {[%emt 0:09:45]} h5 {[%emt 0:03:29]} 24. Kg2 {[%emt 0:03:20]} hxg4 {[%emt 0:08:06]} 25. fxg4 {[%emt 0:00:56]} Kd7 {[%emt 0:01:42]} 26. Rb1 {[%emt 0:03:22]} Rh4 {[%emt 0:04:45]} 27. b4 $2 {[%emt 0:05:26]} (27. Nd1) 27... Rah8 {[%emt 0:00:25]} 28. b5 {[%emt 0:04:16]} c5 {[%emt 0:06:35]} 29. Nd5 {[%emt 0:05:16]} Rxh3 {[%emt 0:00:30]} 30. Qc3 {[%emt 0:03:53]} Rh2+ {[%emt 0:00:23]} 31. Kf1 {[%emt 0:00:28]} Rh1+ {[%emt 0:00:11]} 32. Kg2 {[%emt 0:00:29]} R8h2+ {[%emt 0:00:34]} 33. Kf3 {[%emt 0:00:17]} Rh3+ {[%emt 0:01:23]} 34. Kg2 {[%emt 0:00:17]} R1h2+ {[%emt 0:00:00]} 35. Kf1 {[%emt 0:00:24] [#]} Rf3+ {[%emt 0:00:16]} (35... Be3 $142 $1 {[%mdl 512]} 36. Rg2 (36. Nxe3 Rh1+) 36... Rf3+ 37. Ke1 Qxc3+ 38. Nxc3 Rxg2 39. Nd5 Bd2+ 40. Kd1 Rff2 41. c4 Bf4 42. Ke1 Bg3 43. Nf6+ Ke6 44. Be2 Rxe2+ {[%mdl 64] Double Attack} 45. Kf1 Ref2+ {[%mdl 64] Double Attack} 46. Ke1 Rg1#) 36. Kg1 {[%emt 0:00:54]} Rg3+ {[%emt 0:05:16] Double Attack} 37. Kf1 {[%emt 0:00:48]} Rh1+ {[%emt 0:01:03]} 38. Kf2 {[%emt 0:00:10]} Rh2+ {[%emt 0:01:46]} 39. Kf1 {[%emt 0:00:00]} Rh1+ {[%emt 0:00:17]} 40. Kf2 {[%emt 0:00:33]} Rxb1 $19 {[%emt 0:00:34]} 41. Qxe5 {[%emt 0:30:56]} Bxe5 {[%emt 0:32:01]} 42. Nf6+ {[%emt 0:02:18]} Kd8 {[%emt 0:01:58]} 43. Nd5 {[%emt 0:01:46]} Rbg1 {[%emt 0:00:28]} 44. a4 {[%emt 0:01:28]} Bd4+ {[%emt 0:01:18]} 45. Ne3 {[%emt 0:00:46]} Rxg4 {[%emt 0:40:00]} 46. Kf3 {[%emt 0:27:22]} Rf4# {[%emt 0:00:30]} 0-1

[Event "Skalica SCHAEFFLER Open 2019"]
[Site "Skalica"]
[Date "2019.08.29"]
[Round "6.7"]
[White "Kanak, Matyas"]
[Black "Novomesky Roman"]
[Result "1/2-1/2"]
[ECO "C01"]
[WhiteElo "1540"]
[BlackElo "1000"]
[Annotator "NA"]
[PlyCount "37"]
[EventDate "2019.08.25"]
[EventType "swiss"]
[EventCountry "SVK"]
[SourceTitle "playchess.com"]
[Source "ChessBase"]
[SourceQuality "1"]
[TimeControl "40/5400+30:1800+30"]

1. e4 {[%emt 0:00:00]} e6 {[%emt 0:00:00]} 2. d4 {[%emt 0:00:00]} d5 {[%emt 0:00:34]} 3. exd5 {[%emt 0:04:25]} exd5 {[%emt 0:00:15]} 4. c4 {[%emt 0:00:08]} Nf6 {[%emt 0:01:42]} 5. Nc3 {[%emt 0:00:38]} Bb4 {[%emt 0:01:05]} 6. Bg5 {[%emt 0:04:10]} Be6 {[%emt 0:05:16]} 7. cxd5 {[%emt 0:32:37]} Bxd5 {[%emt 0:04:37]} 8. Nf3 {[%emt 0:00:11]} Bxf3 {[%emt 0:12:25]} 9. Qxf3 {[%emt 0:08:44]} Qxd4 {[%emt 0:09:25]} 10. Bxf6 {[%emt 0:19:21]} gxf6 {[%emt 0:14:05]} 11. Rd1 {[%emt 0:02:01]} Qe5+ {[%emt 0:11:46]} 12. Be2 {[%emt 0:00:28]} Bxc3+ {[%emt 0:00:28]} 13. bxc3 {[%emt 0:04:06]} Nd7 {[%emt 0:08:59]} 14. O-O {[%emt 0:03:20]} O-O-O {[%emt 0:00:34]} 15. Rfe1 {[%emt 0:11:52]} Qa5 {[%emt 0:03:34]} 16. Rb1 {[%emt 0:01:14]} c6 {[%emt 0:03:38]} 17. Qh3 {[%emt 0:00:57]} Kc7 {[%emt 0:01:33]} 18. Bc4 {[%emt 0:00:19]} Ne5 {[%emt 0:00:41]} 19. Bb3 {[%emt 0:00:55]} 1/2-1/2

[Event "Skalica SCHAEFFLER Open 2019"]
[Site "Skalica"]
[Date "2019.08.29"]
[Round "6.8"]
[White "Hrdlicka, Martin"]
[Black "Romanova, Ela"]
[Result "1-0"]
[ECO "B34"]
[WhiteElo "1661"]
[BlackElo "1337"]
[Annotator "NA"]
[PlyCount "66"]
[EventDate "2019.08.25"]
[EventType "swiss"]
[EventCountry "SVK"]
[SourceTitle "playchess.com"]
[Source "ChessBase"]
[SourceQuality "1"]
[TimeControl "40/5400+30:1800+30"]

1. e4 {[%emt 0:00:11]} c5 {[%emt 0:00:00]} 2. Nf3 {[%emt 0:00:06]} Nc6 {[%emt 0:00:00]} 3. d4 {[%emt 0:00:07]} cxd4 {[%emt 0:00:00]} 4. Nxd4 {[%emt 0:00:05]} Nf6 {[%emt 0:00:24]} 5. Nc3 {[%emt 0:00:10]} g6 {[%emt 0:00:30]} 6. Be3 {[%emt 0:03:25]} Bg7 {[%emt 0:00:14]} 7. Be2 {[%emt 0:01:04]} Qa5 {[%emt 0:03:54]} 8. Nb3 {[%emt 0:06:03]} Qd8 {[%emt 0:01:52]} 9. Qd2 {[%emt 0:03:50]} d6 {[%emt 0:01:40]} 10. f3 {[%emt 0:07:02]} Be6 {[%emt 0:07:24]} 11. Bh6 {[%emt 0:06:41]} O-O {[%emt 0:06:24]} 12. O-O-O {[%emt 0:22:56]} a6 {[%emt 0:05:38]} 13. g4 {[%emt 0:00:22]} Nd7 {[%emt 0:12:24]} 14. h4 {[%emt 0:01:56]} f6 {[%emt 0:03:40]} 15. Bxg7 {[%emt 0:02:38]} Kxg7 {[%emt 0:00:54]} 16. g5 {[%emt 0:00:35]} f5 {[%emt 0:05:34]} 17. Nd4 {[%emt 0:01:06]} Nc5 {[%emt 0:09:49]} 18. h5 {[%emt 0:06:48]} Bd7 {[%emt 0:07:15]} 19. hxg6 {[%emt 0:02:02]} hxg6 {[%emt 0:00:51]} 20. exf5 {[%emt 0:00:32]} Bxf5 {[%emt 0:00:56]} 21. Nxf5+ {[%emt 0:00:12]} gxf5 {[%emt 0:07:07]} 22. Rh6 {[%emt 0:06:18]} Rh8 {[%emt 0:03:20]} 23. Rg1 {[%emt 0:02:39]} Qd7 {[%emt 0:02:58]} 24. Nd5 {[%emt 0:03:02]} Raf8 {[%emt 0:02:22]} 25. Qc3+ {[%emt 0:01:43]} e5 {[%emt 0:02:00]} 26. f4 {[%emt 0:09:26]} Ne4 {[%emt 0:03:47]} 27. Qh3 {[%emt 0:00:48]} Qd8 {[%emt 0:02:35]} 28. Nf6 {[%emt 0:01:39]} Nxf6 {[%emt 0:03:50]} 29. gxf6+ {[%emt 0:00:08]} Kf7 {[%emt 0:00:13]} 30. Rg7+ {[%emt 0:01:17]} Ke6 {[%emt 0:00:17]} 31. Qb3+ {[%emt 0:07:18]} d5 {[%emt 0:00:33]} 32. Rxh8 {[%emt 0:01:00]} Rxh8 {[%emt 0:00:20]} 33. Qxb7 {[%emt 0:00:36]} Kxf6 {[%emt 0:02:03]} 1-0

[Event "Skalica SCHAEFFLER Open 2019"]
[Site "Skalica"]
[Date "2019.08.29"]
[Round "6.9"]
[White "Ralbovsky, Milan"]
[Black "Benci, Rudolf"]
[Result "0-1"]
[ECO "B30"]
[WhiteElo "1340"]
[BlackElo "1635"]
[Annotator "NA"]
[PlyCount "62"]
[EventDate "2019.08.25"]
[EventType "swiss"]
[EventCountry "SVK"]
[SourceTitle "playchess.com"]
[Source "ChessBase"]
[SourceQuality "1"]
[TimeControl "40/5400+30:1800+30"]

1. e4 {[%emt 0:00:00]} c5 {[%emt 0:08:11]} 2. c4 {[%emt 0:00:38]} Nc6 {[%emt 0:00:12]} 3. Nf3 {[%emt 0:00:28]} d6 {[%emt 0:00:27]} 4. d3 {[%emt 0:00:49]} e5 {[%emt 0:00:31]} 5. g3 {[%emt 0:02:44]} Be7 {[%emt 0:01:14]} 6. Bg2 {[%emt 0:01:46]} Bg4 {[%emt 0:00:08]} 7. Qb3 {[%emt 0:03:37]} Qd7 {[%emt 0:01:09]} 8. a3 {[%emt 0:00:56]} Nf6 {[%emt 0:02:16]} 9. Nc3 {[%emt 0:00:48]} O-O {[%emt 0:00:31]} 10. h4 {[%emt 0:04:11]} Nd4 {[%emt 0:06:43]} 11. Nxd4 {[%emt 0:00:51]} cxd4 {[%emt 0:00:13]} 12. Nd5 {[%emt 0:03:44]} Nxd5 {[%emt 0:00:02]} 13. exd5 {[%emt 0:04:13]} f5 {[%emt 0:00:34]} 14. Bg5 {[%emt 0:04:02]} f4 {[%emt 0:04:16]} 15. gxf4 {[%emt 0:13:20]} exf4 {[%emt 0:01:53]} 16. Be4 {[%emt 0:01:57]} h6 {[%emt 0:16:19]} 17. Bxe7 {[%emt 0:02:23]} Qxe7 {[%emt 0:00:02]} 18. f3 {[%emt 0:01:08]} Bxf3 {[%emt 0:00:28]} 19. Rg1 {[%emt 0:02:22]} Bxe4 {[%emt 0:10:45]} 20. O-O-O {[%emt 0:01:27]} Bf5 {[%emt 0:04:37]} 21. Rdf1 {[%emt 0:04:47]} Bh3 {[%emt 0:06:24]} 22. Rf3 {[%emt 0:00:53]} Bf5 {[%emt 0:05:46]} 23. Qc2 {[%emt 0:02:37]} b5 {[%emt 0:00:22]} 24. Qd2 {[%emt 0:01:38]} Qxh4 {[%emt 0:07:18]} 25. Rxf4 {[%emt 0:04:00]} Qh3 {[%emt 0:00:30]} 26. Rxd4 {[%emt 0:08:14]} bxc4 {[%emt 0:01:31]} 27. dxc4 {[%emt 0:02:35]} Bh7 {[%emt 0:01:08]} 28. Rdg4 {[%emt 0:01:11]} Rf1+ {[%emt 0:00:40]} 29. Rxf1 {[%emt 0:01:59]} Qxf1+ {[%emt 0:00:02]} 30. Qd1 {[%emt 0:00:17]} Qf5 {[%emt 0:02:00]} 31. Qd4 {[%emt 0:10:45]} Qc2# {[%emt 0:00:27]} 0-1

[Event "Skalica SCHAEFFLER Open 2019"]
[Site "Skalica"]
[Date "2019.08.29"]
[Round "6.10"]
[White "Visvader, Kristof"]
[Black "Bartos, Bohumil"]
[Result "1-0"]
[ECO "B18"]
[WhiteElo "1389"]
[BlackElo "1548"]
[Annotator "NA"]
[PlyCount "105"]
[EventDate "2019.08.25"]
[EventType "swiss"]
[EventCountry "SVK"]
[SourceTitle "playchess.com"]
[Source "ChessBase"]
[SourceQuality "1"]
[TimeControl "40/5400+30:1800+30"]

1. e4 {[%emt 0:00:00]} c6 {[%emt 0:00:00]} 2. d4 {[%emt 0:00:00]} d5 {[%emt 0:00:00]} 3. Nc3 {[%emt 0:00:00]} dxe4 {[%emt 0:00:00]} 4. Nxe4 {[%emt 0:00:00]} Bf5 {[%emt 0:00:05]} 5. f3 {[%emt 0:01:08]} e6 {[%emt 0:00:16]} 6. g3 {[%emt 0:09:43]} h6 {[%emt 0:08:54]} 7. Be3 {[%emt 0:01:22]} Nd7 {[%emt 0:01:53]} 8. Bg2 {[%emt 0:04:18]} Ngf6 {[%emt 0:01:20]} 9. Ne2 {[%emt 0:06:02]} Nd5 {[%emt 0:06:51]} 10. Qd2 {[%emt 0:05:15]} Be7 {[%emt 0:02:52]} 11. a3 {[%emt 0:03:18]} Nxe3 {[%emt 0:02:32]} 12. Qxe3 {[%emt 0:00:13]} O-O {[%emt 0:01:06]} 13. N2c3 {[%emt 0:00:42]} Nf6 {[%emt 0:04:30]} 14. f4 {[%emt 0:04:17]} Nd5 {[%emt 0:02:30]} 15. Qf2 {[%emt 0:06:34]} Qa5 {[%emt 0:03:54]} 16. Qd2 {[%emt 0:02:24]} Rfd8 {[%emt 0:11:36]} 17. Nxd5 {[%emt 0:02:42]} Qxd2+ {[%emt 0:00:09]} 18. Kxd2 {[%emt 0:00:54]} cxd5 {[%emt 0:00:10]} 19. Nf2 {[%emt 0:00:55]} Rac8 {[%emt 0:00:15]} 20. c3 {[%emt 0:00:42]} a6 {[%emt 0:02:56]} 21. g4 {[%emt 0:00:25]} Bg6 {[%emt 0:01:03]} 22. h4 {[%emt 0:01:43]} Bh7 {[%emt 0:02:09]} 23. h5 {[%emt 0:02:29]} Rc7 {[%emt 0:03:25]} 24. Nh3 {[%emt 0:02:36]} f6 {[%emt 0:04:32]} 25. Rag1 {[%emt 0:02:48]} Kf7 {[%emt 0:07:09]} 26. g5 {[%emt 0:00:51]} fxg5 {[%emt 0:00:27]} 27. fxg5 {[%emt 0:00:25]} hxg5 {[%emt 0:13:00]} 28. Bf3 {[%emt 0:04:15]} Rg8 {[%emt 0:02:30]} 29. Nxg5+ {[%emt 0:00:17]} Bxg5+ {[%emt 0:02:08]} 30. Rxg5 {[%emt 0:00:30]} Ke8 {[%emt 0:00:30]} 31. Re1 {[%emt 0:02:15]} Bf5 {[%emt 0:03:05]} 32. Bg4 {[%emt 0:00:36]} Bxg4 {[%emt 0:01:51]} 33. Rxg4 {[%emt 0:01:19]} Re7 {[%emt 0:02:38]} 34. Rg6 {[%emt 0:02:24]} Kf7 {[%emt 0:03:32]} 35. Rf1+ {[%emt 0:00:37]} Ke8 {[%emt 0:00:33]} 36. Rfg1 {[%emt 0:05:10]} Rh8 {[%emt 0:04:16]} 37. Rxg7 {[%emt 0:01:07]} Rxg7 {[%emt 0:00:08]} 38. Rxg7 {[%emt 0:00:08]} Rxh5 {[%emt 0:00:57]} 39. Rxb7 {[%emt 0:00:12]} Rh2+ {[%emt 0:00:38]} 40. Kc1 {[%emt 0:00:49]} Rh1+ {[%emt 0:00:00]} 41. Kc2 {[%emt 0:29:37]} Kd8 {[%emt 0:33:00]} 42. Kb3 {[%emt 0:00:24]} Kc8 {[%emt 0:00:43]} 43. Ra7 {[%emt 0:00:35]} Kb8 {[%emt 0:00:22]} 44. Rxa6 {[%emt 0:00:09]} Rh6 {[%emt 0:00:12]} 45. Kb4 {[%emt 0:02:17]} Kb7 {[%emt 0:00:37]} 46. Kb5 {[%emt 0:00:55]} Kc7 {[%emt 0:00:00]} 47. Rc6+ {[%emt 0:00:00]} Kd7 {[%emt 0:00:00]} 48. a4 {[%emt 0:00:00]} Rh2 {[%emt 0:00:00]} 49. b4 {[%emt 0:00:00]} Rh8 {[%emt 0:00:00]} 50. a5 {[%emt 0:00:00]} Rb8+ {[%emt 0:00:00]} 51. Rb6 {[%emt 0:00:00]} Rh8 {[%emt 0:00:00]} 52. a6 {[%emt 0:00:00]} Rc8 {[%emt 0:00:00]} 53. a7 {[%emt 0:00:00]} 1-0

[Event "Skalica SCHAEFFLER Open 2019"]
[Site "Skalica"]
[Date "2019.08.29"]
[Round "7.1"]
[White "Krupnova, Anna"]
[Black "Londin, Lukas Vojtech"]
[Result "1-0"]
[ECO "B00"]
[WhiteElo "1712"]
[BlackElo "1415"]
[Annotator "NA"]
[PlyCount "63"]
[EventDate "2019.08.25"]
[EventType "swiss"]
[EventCountry "SVK"]
[SourceTitle "playchess.com"]
[Source "ChessBase"]
[SourceQuality "1"]
[TimeControl "40/5400+30:1800+30"]

1. e4 {[%emt 1:30:30]} b6 {[%emt 1:30:30]} 2. d4 {[%emt 0:00:30]} e6 {[%emt 0:00:30]} 3. Nf3 {[%emt 0:00:30]} Bb7 {[%emt 0:00:30]} 4. Bd3 {[%emt 0:00:30]} Nf6 {[%emt 0:00:30]} 5. Nbd2 {[%emt 0:00:30]} c5 {[%emt 0:00:30]} 6. c3 {[%emt 0:00:30]} d5 {[%emt 0:00:30]} 7. e5 {[%emt 0:00:30]} Nfd7 {[%emt 0:00:30]} 8. O-O {[%emt 0:00:30]} Ba6 {[%emt 0:00:30]} 9. Bxa6 {[%emt 0:00:30]} Nxa6 {[%emt 0:00:30]} 10. Qe2 {[%emt 0:00:30]} Nab8 {[%emt 0:00:30]} 11. c4 {[%emt 0:00:30]} dxc4 {[%emt 0:00:30]} 12. Qe4 {[%emt 0:00:30]} Na6 {[%emt 0:00:30]} 13. d5 {[%emt 0:00:30]} exd5 {[%emt 0:00:30]} 14. Qxd5 {[%emt 0:00:30]} Nc7 {[%emt 0:00:30]} 15. Qxc4 {[%emt 0:00:30]} Be7 {[%emt 0:00:30]} 16. Qg4 {[%emt 0:00:30]} O-O {[%emt 0:00:30]} 17. Ne4 {[%emt 0:00:30]} Ne6 {[%emt 0:00:30]} 18. b3 {[%emt 0:00:30]} Kh8 {[%emt 0:00:30]} 19. Bb2 {[%emt 0:00:30]} Qc7 {[%emt 0:00:30]} 20. Rfe1 {[%emt 0:00:30]} Rad8 {[%emt 0:00:30]} 21. h4 {[%emt 0:00:30]} h6 {[%emt 0:00:30]} 22. Nd6 {[%emt 0:00:30]} Nxe5 {[%emt 0:00:30]} 23. Nxf7+ {[%emt 0:00:30]} Rxf7 {[%emt 0:00:30]} 24. Nxe5 {[%emt 0:00:30]} Rf6 {[%emt 0:00:30]} 25. Ng6+ {[%emt 0:00:30]} Rxg6 {[%emt 0:00:30]} 26. Qxg6 {[%emt 0:00:30]} Nd4 {[%emt 0:00:30]} 27. Rac1 {[%emt 0:00:30]} Bf6 {[%emt 0:00:30]} 28. Re8+ {[%emt 0:00:30]} Rxe8 {[%emt 0:00:30]} 29. Qxe8+ {[%emt 0:00:30]} Kh7 {[%emt 0:00:30]} 30. Qe4+ {[%emt 0:00:30]} Kh8 {[%emt 0:00:30]} 31. Bxd4 {[%emt 0:00:30]} Bxd4 {[%emt 0:00:30]} 32. Qxd4 {[%emt 0:00:30]} 1-0

[Event "Skalica SCHAEFFLER Open 2019"]
[Site "Skalica"]
[Date "2019.08.29"]
[Round "7.2"]
[White "Polozov Yaroslavl"]
[Black "Vlcek, Antonin"]
[Result "1-0"]
[ECO "E53"]
[WhiteElo "1000"]
[BlackElo "1686"]
[Annotator "NA"]
[PlyCount "28"]
[EventDate "2019.08.25"]
[EventType "swiss"]
[EventCountry "SVK"]
[SourceTitle "playchess.com"]
[Source "ChessBase"]
[SourceQuality "1"]
[TimeControl "40/5400+30:1800+30"]

1. d4 {[%emt 0:00:00]} Nf6 {[%emt 0:00:00]} 2. c4 {[%emt 0:00:00]} e6 {[%emt 0:00:00]} 3. Nc3 {[%emt 0:00:57]} Bb4 {[%emt 0:00:27]} 4. Nf3 {[%emt 0:00:28]} O-O {[%emt 0:01:07]} 5. e3 {[%emt 0:00:07]} c5 {[%emt 0:02:03]} 6. Bd3 {[%emt 0:00:27]} d5 {[%emt 0:01:38]} 7. Ne5 {[%emt 0:05:04]} dxc4 {[%emt 0:01:02]} 8. Bxc4 {[%emt 0:00:26]} cxd4 {[%emt 0:03:41]} 9. exd4 {[%emt 0:00:40]} b5 {[%emt 0:03:48]} 10. Be2 {[%emt 0:03:09]} Bb7 {[%emt 0:01:00]} 11. O-O {[%emt 0:00:32]} a6 {[%emt 0:03:06]} 12. f4 {[%emt 0:01:18]} Nc6 {[%emt 0:03:30]} 13. Bf3 {[%emt 0:01:18]} Qc7 {[%emt 0:03:43]} 14. g4 {[%emt 0:37:35]} h6 {[%emt 0:33:29]} 1-0

[Event "Skalica SCHAEFFLER Open 2019"]
[Site "Skalica"]
[Date "2019.08.29"]
[Round "7.3"]
[White "Podskubka, Ondrej"]
[Black "Visvader, Kristof"]
[Result "1-0"]
[ECO "D02"]
[WhiteElo "1684"]
[BlackElo "1389"]
[Annotator "NA"]
[PlyCount "25"]
[EventDate "2019.08.25"]
[EventType "swiss"]
[EventCountry "SVK"]
[SourceTitle "playchess.com"]
[Source "ChessBase"]
[SourceQuality "1"]
[TimeControl "40/5400+30:1800+30"]

1. d4 {[%emt 0:00:00]} d5 {[%emt 0:00:00]} 2. Bf4 {[%emt 0:00:00]} Nf6 {[%emt 0:10:16]} 3. e3 {[%emt 0:00:00]} e6 {[%emt 0:00:30]} 4. Nf3 {[%emt 0:00:29]} Nbd7 {[%emt 0:00:30]} 5. Bd3 {[%emt 0:00:30]} c6 {[%emt 0:00:30]} 6. h3 {[%emt 0:00:30]} Qb6 {[%emt 0:00:30]} 7. b3 {[%emt 0:00:30]} Qb4+ {[%emt 0:00:30]} 8. c3 {[%emt 0:00:30]} h6 {[%emt 0:00:30]} 9. Nfd2 {[%emt 0:00:18]} Be7 {[%emt 0:05:18]} 10. Qc2 {[%emt 0:00:30]} g5 {[%emt 0:05:59]} 11. O-O {[%emt 0:06:21]} g4 {[%emt 0:01:38]} 12. Be5 {[%emt 0:01:22]} Rg8 {[%emt 0:06:06]} 13. hxg4 {[%emt 0:00:12]} 1-0

[Event "Skalica SCHAEFFLER Open 2019"]
[Site "Skalica"]
[Date "2019.08.29"]
[Round "7.4"]
[White "Novomeska, Karin"]
[Black "Hrdlicka, Martin"]
[Result "1/2-1/2"]
[ECO "D35"]
[WhiteElo "1269"]
[BlackElo "1661"]
[Annotator "NA"]
[PlyCount "37"]
[EventDate "2019.08.25"]
[EventType "swiss"]
[EventCountry "SVK"]
[SourceTitle "playchess.com"]
[Source "ChessBase"]
[SourceQuality "1"]
[TimeControl "40/5400+30:1800+30"]

1. d4 {[%emt 0:00:00]} d5 {[%emt 0:00:00]} 2. c4 {[%emt 0:00:05]} c6 {[%emt 0:00:00]} 3. Nc3 {[%emt 0:00:00]} Nf6 {[%emt 0:00:00]} 4. Nf3 {[%emt 0:00:00]} e6 {[%emt 0:00:00]} 5. Bg5 {[%emt 0:00:12]} Be7 {[%emt 0:00:06]} 6. e3 {[%emt 0:00:18]} O-O {[%emt 0:00:07]} 7. cxd5 {[%emt 0:00:36]} exd5 {[%emt 0:00:14]} 8. Be2 {[%emt 0:01:07]} Bf5 {[%emt 0:01:17]} 9. O-O {[%emt 0:00:23]} h6 {[%emt 0:00:10]} 10. Bf4 {[%emt 0:03:03]} Nbd7 {[%emt 0:01:11]} 11. Rc1 {[%emt 0:08:31]} Re8 {[%emt 0:12:48]} 12. Qb3 {[%emt 0:02:07]} Nb6 {[%emt 1:04:13]} 13. Na4 {[%emt 0:32:12]} Ne4 {[%emt 0:00:30]} 14. Nc5 {[%emt 0:00:30]} Qc8 {[%emt 0:00:30]} 15. Nxe4 {[%emt 0:00:30]} dxe4 {[%emt 0:00:30]} 16. Nd2 {[%emt 0:00:30]} Nd5 {[%emt 0:00:30]} 17. Bg3 {[%emt 0:00:30]} Bb4 {[%emt 0:00:30]} 18. Nc4 {[%emt 0:00:30]} Bg4 {[%emt 0:00:30]} 19. Bxg4 {[%emt 0:01:37]} 1/2-1/2

[Event "Skalica SCHAEFFLER Open 2019"]
[Site "Skalica"]
[Date "2019.08.29"]
[Round "7.5"]
[White "Londin, Martin"]
[Black "Vach, Jozef"]
[Result "0-1"]
[ECO "C50"]
[WhiteElo "1930"]
[BlackElo "1722"]
[Annotator "NA"]
[PlyCount "40"]
[EventDate "2019.08.25"]
[EventType "swiss"]
[EventCountry "SVK"]
[SourceTitle "playchess.com"]
[Source "ChessBase"]
[SourceQuality "1"]
[TimeControl "40/5400+30:1800+30"]

1. e4 {[%emt 0:00:00]} e5 {[%emt 0:00:00]} 2. Nf3 {[%emt 0:00:00]} Nc6 {[%emt 0:00:00]} 3. d4 {[%emt 0:00:00]} exd4 {[%emt 0:00:00]} 4. Bc4 {[%emt 0:00:00]} Be7 {[%emt 0:02:14]} 5. c3 {[%emt 0:00:13]} d6 {[%emt 0:00:34]} 6. cxd4 {[%emt 0:00:26]} Nf6 {[%emt 0:00:38]} 7. Nc3 {[%emt 0:00:36]} O-O {[%emt 0:00:33]} 8. O-O {[%emt 0:00:42]} h6 {[%emt 0:04:43]} 9. h3 {[%emt 0:00:24]} a6 {[%emt 0:02:24]} 10. a4 {[%emt 0:02:15]} Nxe4 {[%emt 0:00:58]} 11. Nxe4 {[%emt 0:01:07]} d5 {[%emt 0:00:42]} 12. Bxd5 {[%emt 0:00:12]} Qxd5 {[%emt 0:00:00]} 13. Nc3 {[%emt 0:00:33]} Qd6 {[%emt 0:05:37]} 14. Re1 {[%emt 0:00:15]} Bf5 {[%emt 0:01:29]} 15. d5 {[%emt 0:01:51]} Nb4 {[%emt 0:02:43]} 16. Nd4 {[%emt 0:02:02]} Bg6 {[%emt 0:01:20]} 17. Ra3 {[%emt 0:02:14]} Bf6 {[%emt 0:02:58]} 18. Nde2 {[%emt 0:03:48]} Be5 {[%emt 1:12:07]} 19. f4 {[%emt 1:22:52]} Bf6 {[%emt 0:00:30]} 20. Be3 {[%emt 0:00:30]} Nc2 {[%emt 0:00:30]} 0-1

[Event "Skalica SCHAEFFLER Open 2019"]
[Site "Skalica"]
[Date "2019.08.29"]
[Round "7.6"]
[White "Novomesky Roman"]
[Black "Vozarova, Adriana"]
[Result "1/2-1/2"]
[ECO "A84"]
[WhiteElo "1000"]
[BlackElo "1647"]
[Annotator "NA"]
[PlyCount "24"]
[EventDate "2019.08.25"]
[EventType "swiss"]
[EventCountry "SVK"]
[SourceTitle "playchess.com"]
[Source "ChessBase"]
[SourceQuality "1"]
[TimeControl "40/5400+30:1800+30"]

1. d4 {[%emt 0:00:00]} d5 {[%emt 0:00:00]} 2. c4 {[%emt 0:00:19]} e6 {[%emt 0:00:07]} 3. Nc3 {[%emt 0:00:23]} c6 {[%emt 0:00:09]} 4. Nf3 {[%emt 0:01:32]} f5 {[%emt 0:01:15]} 5. Bf4 {[%emt 0:03:11]} Nf6 {[%emt 0:00:26]} 6. e3 {[%emt 0:03:26]} Be7 {[%emt 0:01:04]} 7. Be2 {[%emt 0:03:20]} O-O {[%emt 0:01:06]} 8. O-O {[%emt 0:00:08]} Nbd7 {[%emt 0:00:19]} 9. c5 {[%emt 0:04:50]} Ne4 {[%emt 0:02:15]} 10. Nxe4 {[%emt 0:06:27]} dxe4 {[%emt 0:04:54]} 11. Nd2 {[%emt 0:04:54]} g5 {[%emt 0:03:42]} 12. h4 {[%emt 0:34:04]} h6 {[%emt 0:35:33]} 1/2-1/2